bitfinex-derivatives/quotes_SOLF0:USTF0_20251026
["timestamp","ask_amount","ask_price","bid_price","bid_amount"]
[1761449826005,3.9272355,193.01,192.9,2.75]
[1761449826202,3.9272355,193.0,192.9,2.75]
[1761449826410,3.9272355,192.99,192.9,2.75]
[1761449826709,6.81492761,193.02,192.9,2.75]
[1761449826910,3.92730334,193.01,192.9,2.75]
[1761449827105,3.92730334,193.0,192.9,2.75]
[1761449827309,3.92730334,192.99,192.9,2.75]
[1761449827513,7.20529998,193.04,192.9,2.75]
[1761449827713,8.36581766,193.03,192.9,2.75]
[1761449827909,3.93209502,193.02,192.9,2.75]
[1761449828110,3.93209502,193.01,192.9,2.75]
[1761449828311,3.93209502,193.0,192.9,2.75]
[1761449828613,7.20529998,193.04,192.9,2.75]
[1761449828814,3.93229835,193.03,192.9,2.75]
[1761449829008,3.93229835,193.02,192.9,2.75]
[1761449829209,3.93229835,193.01,192.9,2.75]
[1761449829411,3.93229835,193.0,192.9,2.75]
[1761449829613,7.20529998,193.04,192.9,2.75]
[1761449829812,3.93270711,193.03,192.9,2.75]
[1761449830010,3.93270711,193.02,192.9,2.75]
[1761449830212,3.93270711,193.01,192.9,2.75]
[1761449830414,3.93270711,193.0,192.9,2.75]
[1761449830618,4.43478283,193.03,192.9,2.75]
[1761449830814,3.93305178,193.02,192.9,2.75]
[1761449831014,3.93305178,193.01,192.9,2.75]
[1761449831211,3.93305178,193.0,192.9,2.75]
[1761449831518,4.43468759,193.03,192.9,2.75]
[1761449831717,3.93348561,193.02,192.9,2.75]
[1761449831918,3.93348561,193.01,192.9,2.75]
[1761449832216,3.93348561,193.0,192.9,2.75]
[1761449832521,4.43544248,193.03,192.9,2.75]
[1761449832719,4.43544248,193.03,192.93,2.81]
[1761449832720,3.93371757,193.02,192.93,2.81]
[1761449833016,3.93371757,193.01,192.93,2.81]
[1761449833218,3.93371757,193.0,192.93,2.81]
[1761449833416,3.93419746,192.99,192.93,2.81]
[1761449833615,5.94748841,193.03,192.93,2.81]
[1761449833813,3.93419811,193.02,192.93,2.81]
[1761449834120,3.93419811,193.01,192.93,2.81]
[1761449834417,3.93419811,193.0,192.93,2.81]
[1761449834718,3.93419811,192.99,192.93,2.81]
[1761449834918,1.51204593,193.03,192.93,2.81]
[1761449835120,3.9344633,193.02,192.93,2.81]
[1761449835318,3.9344633,193.01,192.93,2.81]
[1761449835519,3.9344633,193.0,192.93,2.81]
[1761449835720,3.9344633,192.99,192.93,2.81]
[1761449836021,10.79201471,193.03,192.93,2.81]
[1761449836218,3.93499621,193.02,192.93,2.81]
[1761449836417,3.93499621,193.01,192.93,2.81]
[1761449836620,3.93499621,193.0,192.93,2.81]
[1761449836816,3.93499621,192.99,192.93,2.81]
[1761449837020,3.93499621,192.98,192.93,2.81]
[1761449837220,4.84360574,193.02,192.93,2.81]
[1761449837421,3.93651767,193.01,192.93,2.81]
[1761449837723,3.93651767,193.0,192.93,2.81]
[1761449838020,3.93651767,192.99,192.93,2.81]
[1761449838216,3.93651767,192.98,192.93,2.81]
[1761449838420,4.84360574,193.02,192.93,2.81]
[1761449838620,3.93734742,193.01,192.93,2.81]
[1761449838920,3.93734742,193.0,192.93,2.81]
[1761449839120,3.93734742,192.99,192.93,2.81]
[1761449839322,3.93734742,192.98,192.93,2.81]
[1761449839521,3.93841039,192.97,192.93,2.81]
[1761449839721,6.35565167,193.03,192.93,2.81]
[1761449839920,3.93824437,193.02,192.93,2.81]
[1761449840220,3.93824437,193.01,192.93,2.81]
[1761449840520,3.93824437,193.0,192.93,2.81]
[1761449840710,3.93824437,192.99,192.93,2.81]
[1761449840918,3.93824437,192.98,192.93,2.81]
[1761449841220,9.28428441,193.02,192.93,2.81]
[1761449841421,3.94066578,193.01,192.93,2.81]
[1761449841623,3.94066578,193.0,192.93,2.81]
[1761449841822,3.94066578,192.99,192.93,2.81]
[1761449842021,3.94066578,192.98,192.93,2.81]
[1761449842228,4.84360574,193.02,192.93,2.81]
[1761449842528,3.94156798,193.01,192.93,2.81]
[1761449842717,3.94156798,193.0,192.93,2.81]
[1761449842915,3.94156798,192.99,192.93,2.81]
[1761449843117,3.94156798,192.98,192.93,2.81]
[1761449843330,4.84360574,193.02,192.93,2.81]
[1761449843626,3.94181332,193.01,192.93,2.81]
[1761449843825,3.94181332,193.0,192.93,2.81]
[1761449844030,3.94181332,192.99,192.93,2.81]
[1761449844230,3.94181332,192.98,192.93,2.81]
[1761449844424,4.84360574,193.02,192.93,2.81]
[1761449844623,3.94181558,193.01,192.93,2.81]
[1761449844823,3.94181558,193.0,192.93,2.81]
[1761449845023,3.94181558,192.99,192.93,2.81]
[1761449845225,3.94181558,192.98,192.93,2.81]
[1761449845427,4.84360574,193.02,192.93,2.81]
[1761449845729,1.51204593,193.0,192.9,4.32204593]
[1761449845924,3.94183049,192.99,192.9,4.32204593]
[1761449846125,3.94183049,192.98,192.91,2.81]
[1761449846326,3.94183049,192.97,192.91,2.81]
[1761449846526,3.94183049,192.96,192.91,2.81]
[1761449846727,5.95654775,193.0,192.91,2.81]
[1761449846926,3.94215684,192.99,192.91,2.81]
[1761449847126,3.94215684,192.98,192.91,2.81]
[1761449847327,3.94215684,192.97,192.91,2.81]
[1761449847527,3.94215684,192.96,192.91,2.81]
[1761449847728,5.95654775,193.0,192.91,2.81]
[1761449847928,3.94235917,192.99,192.91,2.81]
[1761449848129,3.94235917,192.98,192.91,2.81]
[1761449848330,3.94235917,192.97,192.91,2.81]
[1761449848525,3.94235917,192.96,192.91,2.81]
[1761449848725,5.95654775,193.0,192.91,2.81]
[1761449848925,3.94236291,192.99,192.91,2.81]
[1761449849125,3.94236291,192.98,192.91,2.81]
[1761449849326,3.94236291,192.97,192.91,2.81]
[1761449849526,3.94236291,192.96,192.91,2.81]
[1761449849730,5.95654775,193.0,192.91,2.81]
[1761449849930,3.94236365,192.99,192.91,2.81]
[1761449850131,3.94236365,192.98,192.91,2.81]
[1761449850330,3.94236365,192.97,192.91,2.81]
[1761449850535,3.94236365,192.96,192.91,2.81]
[1761449850832,5.95654775,193.0,192.91,2.81]
[1761449851033,3.94236439,192.99,192.91,2.81]
[1761449851235,3.94236439,192.98,192.91,2.81]
[1761449851434,3.94236439,192.97,192.91,2.81]
[1761449851635,3.94236439,192.96,192.91,2.81]
[1761449851935,5.95654775,193.0,192.91,2.81]
[1761449852139,3.94242227,192.99,192.91,2.81]
[1761449852330,3.94242227,192.98,192.91,2.81]
[1761449852531,3.94242227,192.97,192.91,2.81]
[1761449852732,3.94242227,192.96,192.91,2.81]
[1761449853037,6.35565167,193.0,192.91,2.81]
[1761449853237,3.94203281,192.99,192.91,2.81]
[1761449853536,3.94203281,192.98,192.91,2.81]
[1761449853737,3.94203281,192.97,192.91,2.81]
[1761449854036,3.94203281,192.96,192.91,2.81]
[1761449854235,6.35565167,193.0,192.91,2.81]
[1761449854428,3.94234859,192.99,192.91,2.81]
[1761449854628,3.94234859,192.98,192.91,2.81]
[1761449854827,3.94234859,192.97,192.91,2.81]
[1761449855032,6.35565167,193.0,192.91,2.81]
[1761449855033,3.94234859,192.96,192.91,2.81]
[1761449855234,6.35565167,193.0,192.91,2.81]
[1761449855430,3.94244027,192.99,192.91,2.81]
[1761449855631,3.94244027,192.98,192.91,2.81]
[1761449855934,3.94244027,192.97,192.91,2.81]
[1761449856135,3.94244027,192.96,192.91,2.81]
[1761449856336,6.35565167,193.0,192.91,2.81]
[1761449856541,3.94229789,192.99,192.91,2.81]
[1761449856739,3.94229789,192.98,192.91,2.81]
[1761449856930,3.94229789,192.97,192.91,2.81]
[1761449857130,3.94229789,192.96,192.91,2.81]
[1761449857330,6.35565167,193.0,192.91,2.81]
[1761449857630,3.94215886,192.99,192.91,2.81]
[1761449857928,3.94215886,192.98,192.91,2.81]
[1761449858130,3.94215886,192.97,192.91,2.81]
[1761449858328,3.94215886,192.96,192.91,2.81]
[1761449858537,6.35565167,193.0,192.91,2.81]
[1761449858735,3.94341323,192.99,192.91,2.81]
[1761449859037,3.94341323,192.98,192.91,2.81]
[1761449859233,3.94341323,192.97,192.91,2.81]
[1761449859431,3.94341323,192.96,192.91,2.81]
[1761449859632,3.94341323,192.95,192.91,2.81]
[1761449859832,4.45308388,192.99,192.91,2.81]
[1761449860034,3.94335504,192.98,192.91,2.81]
[1761449860234,3.94335504,192.97,192.91,2.81]
[1761449860434,3.94335504,192.96,192.91,2.81]
[1761449860639,3.94335504,192.95,192.91,2.81]
[1761449860837,4.45308388,192.99,192.91,2.81]
[1761449861036,3.9431408,192.98,192.91,2.81]
[1761449861330,3.9431408,192.97,192.91,2.81]
[1761449861536,3.9431408,192.96,192.91,2.81]
[1761449861736,3.9431408,192.95,192.91,2.81]
[1761449862039,6.35565167,193.0,192.91,2.81]
[1761449862239,3.94280132,192.99,192.91,2.81]
[1761449862432,3.94280132,192.98,192.91,2.81]
[1761449862628,6.35565167,193.0,192.91,2.81]
[1761449862629,3.94280132,192.97,192.91,2.81]
[1761449862832,3.94280132,192.96,192.91,2.81]
[1761449863029,6.35565167,193.0,192.91,2.81]
[1761449863238,3.942791,192.99,192.91,2.81]
[1761449863436,3.942791,192.98,192.91,2.81]
[1761449863736,3.942791,192.97,192.91,2.81]
[1761449863937,3.942791,192.96,192.91,2.81]
[1761449864138,6.35565167,193.0,192.91,2.81]
[1761449864338,3.94272232,192.99,192.91,2.81]
[1761449864541,3.94272232,192.98,192.91,2.81]
[1761449864741,3.94272232,192.97,192.91,2.81]
[1761449864935,3.94272232,192.96,192.91,2.81]
[1761449865238,6.35565167,193.0,192.91,2.81]
[1761449865436,3.94269876,192.99,192.91,2.81]
[1761449865738,3.94269876,192.98,192.91,2.81]
[1761449866040,3.94269876,192.97,192.91,2.81]
[1761449866241,3.94269876,192.96,192.91,2.81]
[1761449866542,6.35565167,193.0,192.91,2.81]
[1761449866742,3.9426193,192.99,192.91,2.81]
[1761449866943,3.9426193,192.98,192.91,2.81]
[1761449867140,3.9426193,192.97,192.91,2.81]
[1761449867442,3.9426193,192.96,192.91,2.81]
[1761449867643,10.80738802,193.0,192.91,2.81]
[1761449867840,3.94254391,192.99,192.91,2.81]
[1761449868040,3.94254391,192.98,192.91,2.81]
[1761449868243,3.94254391,192.97,192.91,2.81]
[1761449868442,3.94254391,192.96,192.91,2.81]
[1761449868738,5.96378228,193.0,192.91,2.81]
[1761449868944,3.94243769,192.99,192.91,2.81]
[1761449869146,3.94243769,192.98,192.91,2.81]
[1761449869339,3.94243769,192.97,192.91,2.81]
[1761449869638,3.94243769,192.96,192.91,2.81]
[1761449869838,5.96378228,193.0,192.91,2.81]
[1761449870039,3.94239063,192.99,192.91,2.81]
[1761449870239,3.94239063,192.98,192.91,2.81]
[1761449870440,3.94239063,192.97,192.91,2.81]
[1761449870640,5.96378228,193.0,192.91,2.81]
[1761449870641,3.94239063,192.96,192.91,2.81]
[1761449870843,5.96378228,193.0,192.91,2.81]
[1761449871043,3.94234804,192.99,192.91,2.81]
[1761449871240,3.94234804,192.98,192.91,2.81]
[1761449871440,3.94234804,192.97,192.91,2.81]
[1761449871642,3.94234804,192.96,192.91,2.81]
[1761449871843,5.96378228,193.0,192.91,2.81]
[1761449872146,3.94230788,192.99,192.91,2.81]
[1761449872446,3.94230788,192.98,192.91,2.81]
[1761449872646,3.94230788,192.97,192.91,2.81]
[1761449872846,1.51204593,193.0,192.91,2.81]
[1761449873145,3.94202723,192.99,192.91,2.81]
[1761449873347,3.94202723,192.98,192.91,2.81]
[1761449873646,3.94202723,192.97,192.91,2.81]
[1761449873847,1.51204593,193.0,192.91,2.81]
[1761449874048,3.94207363,192.99,192.91,2.81]
[1761449874250,3.94207363,192.98,192.91,2.81]
[1761449874452,3.94207363,192.97,192.91,2.81]
[1761449874647,3.94233646,192.96,192.91,2.81]
[1761449874940,5.96351792,193.0,192.91,2.81]
[1761449875147,3.94239265,192.99,192.91,2.81]
[1761449875346,3.94239265,192.98,192.91,2.81]
[1761449875548,3.94239265,192.97,192.91,2.81]
[1761449875850,3.94239265,192.96,192.91,2.81]
[1761449876046,5.96351792,193.0,192.91,2.81]
[1761449876248,3.94276323,192.99,192.91,2.81]
[1761449876462,3.94276323,192.98,192.91,2.81]
[1761449876754,3.94276323,192.97,192.91,2.81]
[1761449876948,3.94276323,192.96,192.91,2.81]
[1761449877251,5.96392608,193.0,192.91,2.81]
[1761449877452,3.94289452,192.99,192.91,2.81]
[1761449877745,3.94289452,192.98,192.91,2.81]
[1761449877943,3.94289452,192.97,192.91,2.81]
[1761449878147,3.94289452,192.96,192.91,2.81]
[1761449878340,5.96392608,193.0,192.91,2.81]
[1761449878546,3.94315582,192.99,192.91,2.81]
[1761449878743,3.94315582,192.98,192.91,2.81]
[1761449878952,3.94315582,192.97,192.91,2.81]
[1761449879156,3.94315582,192.96,192.91,2.81]
[1761449879452,5.96392608,193.0,192.91,2.81]
[1761449879752,3.943257,192.99,192.91,2.81]
[1761449879948,3.943257,192.98,192.91,2.81]
[1761449880150,3.943257,192.97,192.91,2.81]
[1761449880349,3.943257,192.96,192.91,2.81]
[1761449880554,5.96392608,193.0,192.91,2.81]
[1761449880756,3.94330967,192.99,192.91,2.81]
[1761449881053,3.94330967,192.98,192.91,2.81]
[1761449881254,3.94330967,192.97,192.91,2.81]
[1761449881459,3.94330967,192.96,192.91,2.81]
[1761449881654,5.96392608,193.0,192.91,2.81]
[1761449881949,3.94344159,192.99,192.91,2.81]
[1761449882257,3.94344159,192.98,192.91,2.81]
[1761449882456,3.94344159,192.97,192.91,2.81]
[1761449882655,3.94344159,192.96,192.91,2.81]
[1761449882856,5.96392608,193.0,192.91,2.81]
[1761449883057,3.94346234,192.99,192.91,2.81]
[1761449883358,3.94346234,192.98,192.91,2.81]
[1761449883550,3.94346234,192.97,192.91,2.81]
[1761449883752,3.94346234,192.96,192.91,2.81]
[1761449883953,5.96392608,193.0,192.91,2.81]
[1761449884157,3.94348446,192.99,192.91,2.81]
[1761449884352,3.94348446,192.98,192.91,2.81]
[1761449884551,3.94348446,192.97,192.91,2.81]
[1761449884851,3.94348446,192.96,192.91,2.81]
[1761449885147,5.96392608,193.0,192.91,2.81]
[1761449885351,3.94371096,192.99,192.91,2.81]
[1761449885551,3.94371096,192.98,192.91,2.81]
[1761449885851,3.94371096,192.97,192.91,2.81]
[1761449886153,3.94371096,192.96,192.91,2.81]
[1761449886358,6.35565167,193.0,192.91,2.81]
[1761449886561,3.94409185,192.99,192.91,2.81]
[1761449886768,3.94409185,192.98,192.91,2.81]
[1761449887066,3.94409185,192.97,192.91,2.81]
[1761449887367,3.94409185,192.96,192.91,2.81]
[1761449887666,6.35565167,193.0,192.91,2.81]
[1761449887868,3.92698281,192.99,192.91,2.81]
[1761449888067,3.92698281,192.98,192.91,2.81]
[1761449888264,3.92698281,192.97,192.91,2.81]
[1761449888464,3.92698281,192.96,192.91,2.81]
[1761449888667,6.35565167,193.0,192.91,2.81]
[1761449888866,3.92742345,192.99,192.91,2.81]
[1761449889062,3.92742345,192.98,192.91,2.81]
[1761449889269,3.92742345,192.97,192.91,2.81]
[1761449889571,3.92742345,192.96,192.91,2.81]
[1761449889870,6.35565167,193.0,192.91,2.81]
[1761449890070,3.9279134,192.99,192.91,2.81]
[1761449890271,3.9279134,192.98,192.91,2.81]
[1761449890472,3.9279134,192.97,192.91,2.81]
[1761449890772,3.9279134,192.96,192.91,2.81]
[1761449890972,6.35565167,193.0,192.91,2.81]
[1761449891172,3.92851823,192.99,192.91,2.81]
[1761449891372,3.92851823,192.98,192.91,2.81]
[1761449891570,3.92851823,192.97,192.91,2.81]
[1761449891770,3.92851823,192.96,192.91,2.81]
[1761449891974,4.44445747,192.99,192.91,2.81]
[1761449892168,3.92860784,192.98,192.91,2.81]
[1761449892369,3.92860784,192.97,192.91,2.81]
[1761449892673,3.92860784,192.96,192.91,2.81]
[1761449892970,4.44445747,192.99,192.91,2.81]
[1761449893171,3.92864469,192.98,192.91,2.81]
[1761449893373,3.92864469,192.97,192.91,2.81]
[1761449893574,3.92864469,192.96,192.91,2.81]
[1761449893773,4.84360574,193.0,192.91,2.81]
[1761449893974,3.92863506,192.99,192.91,2.81]
[1761449894274,3.92863506,192.98,192.91,2.81]
[1761449894470,3.92863506,192.97,192.91,2.81]
[1761449894674,3.92863506,192.96,192.91,2.81]
[1761449894879,4.84360574,193.0,192.91,2.81]
[1761449895073,3.92868232,192.99,192.91,2.81]
[1761449895274,3.92868232,192.98,192.91,2.81]
[1761449895474,3.92868232,192.97,192.91,2.81]
[1761449895777,3.92868232,192.96,192.91,2.81]
[1761449895975,4.84360574,193.0,192.91,2.81]
[1761449896276,8.37335487,192.99,192.91,2.81]
[1761449896476,3.92872402,192.98,192.91,2.81]
[1761449896681,3.92872402,192.97,192.91,2.81]
[1761449896878,4.84360574,193.0,192.91,2.81]
[1761449896879,3.92872402,192.96,192.91,2.81]
[1761449897179,4.84360574,193.0,192.91,2.81]
[1761449897382,3.9287262,192.99,192.91,2.81]
[1761449897573,3.9287262,192.98,192.91,2.81]
[1761449897876,3.9287262,192.97,192.91,2.81]
[1761449898077,3.9287262,192.96,192.91,2.81]
[1761449898277,4.44463258,192.99,192.91,2.81]
[1761449898471,3.9287868,192.98,192.91,2.81]
[1761449898678,3.9287868,192.97,192.91,2.81]
[1761449898879,3.9287868,192.96,192.91,2.81]
[1761449899079,4.84360574,193.0,192.91,2.81]
[1761449899274,3.92871809,192.99,192.91,2.81]
[1761449899474,3.92871809,192.98,192.91,2.81]
[1761449899675,3.92871809,192.97,192.91,2.81]
[1761449899876,3.92871809,192.96,192.91,2.81]
[1761449900176,4.84360574,193.0,192.91,2.81]
[1761449900473,3.92871742,192.99,192.91,2.81]
[1761449900677,3.92871742,192.98,192.91,2.81]
[1761449900873,3.92871742,192.97,192.91,2.81]
[1761449901174,3.92871742,192.96,192.91,2.81]
[1761449901375,4.84360574,193.0,192.91,2.81]
[1761449901578,3.92873181,192.99,192.91,2.81]
[1761449901870,3.92873181,192.98,192.91,2.81]
[1761449902074,3.92873181,192.97,192.91,2.81]
[1761449902274,3.92873181,192.96,192.91,2.81]
[1761449902479,4.84360574,193.0,192.91,2.81]
[1761449902684,3.92873509,192.99,192.91,2.81]
[1761449902884,3.92873509,192.98,192.91,2.81]
[1761449903085,3.92873509,192.97,192.91,2.81]
[1761449903384,3.92873509,192.96,192.91,2.81]
[1761449903585,4.84360574,193.0,192.91,2.81]
[1761449903884,3.92873824,192.99,192.91,2.81]
[1761449904072,3.92873824,192.98,192.91,2.81]
[1761449904275,3.92873824,192.97,192.91,2.81]
[1761449904476,3.92873824,192.96,192.91,2.81]
[1761449904678,4.84360574,193.0,192.91,2.81]
[1761449904877,8.37363448,192.99,192.91,2.81]
[1761449905076,3.92874361,192.98,192.91,2.81]
[1761449905278,3.92874361,192.97,192.91,2.81]
[1761449905478,3.92874361,192.96,192.91,2.81]
[1761449905678,4.44489087,192.99,192.91,2.81]
[1761449905876,3.92891197,192.98,192.91,2.81]
[1761449906077,3.92891197,192.97,192.91,2.81]
[1761449906390,3.92891197,192.96,192.91,2.81]
[1761449906583,4.44489087,192.99,192.91,2.81]
[1761449906778,3.9291703,192.98,192.91,2.81]
[1761449906978,3.9291703,192.97,192.91,2.81]
[1761449907178,3.9291703,192.96,192.91,2.81]
[1761449907378,4.44489087,192.99,192.91,2.81]
[1761449907587,3.92912772,192.98,192.91,2.81]
[1761449907786,3.92912772,192.97,192.91,2.81]
[1761449907988,3.92912772,192.96,192.91,2.81]
[1761449908189,4.44489087,192.99,192.91,2.81]
[1761449908390,3.92915976,192.98,192.91,2.81]
[1761449908589,3.92915976,192.97,192.91,2.81]
[1761449908887,3.92915976,192.96,192.91,2.81]
[1761449909187,4.44489087,192.99,192.91,2.81]
[1761449909386,3.92920725,192.98,192.91,2.81]
[1761449909586,3.92920725,192.97,192.91,2.81]
[1761449909787,3.92920725,192.96,192.91,2.81]
[1761449909990,4.44489087,192.99,192.91,2.81]
[1761449910189,3.92921942,192.98,192.91,2.81]
[1761449910489,3.92921942,192.97,192.91,2.81]
[1761449910686,3.92921942,192.96,192.91,2.81]
[1761449910882,4.44489087,192.99,192.91,2.81]
[1761449911088,3.92927397,192.98,192.91,2.81]
[1761449911386,3.92927397,192.97,192.91,2.81]
[1761449911680,3.92927397,192.96,192.91,2.81]
[1761449911884,4.44489087,192.99,192.91,2.81]
[1761449912085,3.92933424,192.98,192.91,2.81]
[1761449912387,3.92933424,192.97,192.91,2.81]
[1761449912582,3.92933424,192.96,192.91,2.81]
[1761449912783,4.44489087,192.99,192.91,2.81]
[1761449912979,3.92940287,192.98,192.91,2.81]
[1761449913179,3.92940287,192.97,192.91,2.81]
[1761449913387,3.92940287,192.96,192.91,2.81]
[1761449913588,4.44489087,192.99,192.91,2.81]
[1761449913786,3.92943356,192.98,192.91,2.81]
[1761449913981,3.92943356,192.97,192.91,2.81]
[1761449914177,3.92943356,192.96,192.91,2.81]
[1761449914379,4.44489087,192.99,192.91,2.81]
[1761449914578,3.92946356,192.98,192.91,2.81]
[1761449914781,3.92946356,192.97,192.91,2.81]
[1761449914989,3.92946356,192.96,192.91,2.81]
[1761449915190,4.44489087,192.99,192.91,2.81]
[1761449915394,3.92949665,192.98,192.91,2.81]
[1761449915592,3.92949665,192.97,192.91,2.81]
[1761449915892,3.92949665,192.96,192.91,2.81]
[1761449916092,4.44489087,192.99,192.91,2.81]
[1761449916292,3.92952334,192.98,192.91,2.81]
[1761449916491,3.92952334,192.97,192.91,2.81]
[1761449916688,4.85571509,193.0,192.91,2.81]
[1761449916689,3.92952334,192.96,192.91,2.81]
[1761449916891,4.85571509,193.0,192.91,2.81]
[1761449917192,3.92942238,192.99,192.91,2.81]
[1761449917391,3.92942238,192.98,192.91,2.81]
[1761449917591,3.92942238,192.97,192.91,2.81]
[1761449917890,3.92942238,192.96,192.91,2.81]
[1761449918092,4.85571509,193.0,192.91,2.81]
[1761449918291,3.9351854,192.99,192.91,2.81]
[1761449918492,3.9351854,192.98,192.91,2.81]
[1761449918693,3.9351854,192.97,192.91,2.81]
[1761449918891,3.9351854,192.96,192.91,2.81]
[1761449919092,4.85571509,193.0,192.91,2.81]
[1761449919292,3.93519922,192.99,192.91,2.81]
[1761449919486,3.93519922,192.98,192.91,2.81]
[1761449919686,3.93519922,192.97,192.91,2.81]
[1761449919885,3.93519922,192.96,192.91,2.81]
[1761449920093,4.85571509,193.0,192.91,2.81]
[1761449920285,3.93508379,192.99,192.91,2.81]
[1761449920483,3.93508379,192.98,192.91,2.81]
[1761449920687,3.93508379,192.97,192.91,2.81]
[1761449920887,3.93508379,192.96,192.91,2.81]
[1761449921088,4.85571509,193.0,192.91,2.81]
[1761449921289,3.93499464,192.99,192.91,2.81]
[1761449921489,3.93499464,192.98,192.91,2.81]
[1761449921691,3.93499464,192.97,192.91,2.81]
[1761449921891,3.93499464,192.96,192.91,2.81]
[1761449922091,4.85571509,193.01,192.91,2.81]
[1761449922291,8.36940416,193.0,192.91,2.81]
[1761449922486,3.93490894,192.99,192.91,2.81]
[1761449922688,3.93490894,192.98,192.91,2.81]
[1761449922888,3.93490894,192.97,192.91,2.81]
[1761449923088,3.93490894,192.96,192.91,2.81]
[1761449923286,4.85571509,193.01,192.91,2.81]
[1761449923489,8.36912714,193.0,192.91,2.81]
[1761449923785,3.93477955,192.99,192.91,2.81]
[1761449924085,3.93477955,192.98,192.91,2.81]
[1761449924289,3.93477955,192.97,192.91,2.81]
[1761449924485,3.93477955,192.96,192.91,2.81]
[1761449924687,4.85571509,193.0,192.91,2.81]
[1761449924896,3.93484266,192.99,192.91,2.81]
[1761449925097,3.93484266,192.98,192.91,2.81]
[1761449925294,3.93484266,192.97,192.91,2.81]
[1761449925494,3.93484266,192.96,192.91,2.81]
[1761449925699,4.85571509,193.0,192.91,2.81]
[1761449925899,3.93485361,192.99,192.91,2.81]
[1761449926094,3.93485361,192.98,192.91,2.81]
[1761449926295,3.93485361,192.97,192.91,2.81]
[1761449926495,3.93485361,192.96,192.91,2.81]
[1761449926695,3.93496157,192.95,192.91,2.81]
[1761449926999,4.85571509,193.0,192.91,2.81]
[1761449927300,8.3696491,192.99,192.91,2.81]
[1761449927500,3.93496157,192.98,192.91,2.81]
[1761449927699,3.93496157,192.97,192.91,2.81]
[1761449927901,3.93496157,192.96,192.91,2.81]
[1761449928198,3.93496157,192.95,192.91,2.81]
[1761449928393,4.43468753,192.99,192.91,2.81]
[1761449928602,3.93493676,192.98,192.91,2.81]
[1761449928898,3.93493676,192.97,192.91,2.81]
[1761449929198,3.93493676,192.96,192.91,2.81]
[1761449929401,3.93493676,192.95,192.91,2.81]
[1761449929600,4.43468753,192.99,192.91,2.81]
[1761449929900,3.93495465,192.98,192.91,2.81]
[1761449930100,3.93495465,192.97,192.91,2.81]
[1761449930301,3.93495465,192.96,192.91,2.81]
[1761449930496,3.93495465,192.95,192.91,2.81]
[1761449930796,4.43468753,192.99,192.91,2.81]
[1761449930994,3.93491946,192.98,192.91,2.81]
[1761449931196,3.93491946,192.97,192.91,2.81]
[1761449931398,3.93491946,192.96,192.91,2.81]
[1761449931596,4.43468753,192.99,192.91,2.81]
[1761449931597,3.93491946,192.95,192.91,2.81]
[1761449931801,4.43468753,192.99,192.91,2.81]
[1761449932001,3.93489531,192.98,192.91,2.81]
[1761449932201,3.93489531,192.97,192.91,2.81]
[1761449932405,3.93489531,192.96,192.91,2.81]
[1761449932605,3.93489531,192.95,192.91,2.81]
[1761449932807,4.43468753,192.99,192.91,2.81]
[1761449933007,3.93487244,192.98,192.91,2.81]
[1761449933208,3.93487244,192.97,192.91,2.81]
[1761449933407,3.93487244,192.96,192.91,2.81]
[1761449933608,3.93487244,192.95,192.91,2.81]
[1761449933905,4.43468753,192.99,192.91,2.81]
[1761449934108,3.93485071,192.98,192.91,2.81]